{"text_format":"1","workbook":"xlsx","n_sheets":3,"sheets":["簡易計算表","積算根拠","国税徴収法76条第1項"],"not_rendered":{"charts":0,"images":0,"macros":1,"external_links":0,"defined_names":15,"comments":1,"pivot_tables":0},"unopened":[],"bounds":{"document_bytes":16777216,"sheet_cells":100000,"rows_first":2000,"rows_last":500,"rows_between":2000,"halvings":0,"cell_chars":16384,"cell_head_chars":4096},"cells_cut":0,"cells_raw":0,"read":"whole","date_system":"1900"}

{"sheet":"簡易計算表","index":0,"n_rows":21,"n_cols":4,"rows_kept":21,"cut":false,"hidden":false,"merged":[[1,1,1,2],[0,0,0,2],[1,0,2,0],[9,0,10,0],[8,1,8,4]]}
["給与・賞与差押可能額　簡易計算表"]
[null,"入力欄"]
[null,"Ａ","Ｂ"]
["給料等の月額"]
["給料等から差し引いている\n源泉所得税額（１号）"]
["給料等から差し引いている\n地方税額（２号）"]
["給料等から差し引いている\n社会保険料等の額（３号）"]
["生計を一にする親族数（４号関係）"]
[null,"　　　　　　　※　Ａ＝給与（支給日が先）　、Ｂ＝賞与（支給日が後）"]
["　　　　入力欄に数値を入力後、ココをクリック↓↓↓"]
[]
[null,"Ａ振込額：",0,"円"]
[null,"Ｂ振込額：",0,"円"]
[null,null,"※それぞれの支払日に振込をしてください。"]
[]
[]
[]
[]
[{"$f":"積算根拠!E12","v":0}]
[{"$f":"積算根拠!G12","v":-80000}]
[{"$f":"A20-A19","v":-80000}]

{"sheet":"積算根拠","index":1,"n_rows":12,"n_cols":10,"rows_kept":12,"cut":false,"hidden":false,"merged":[[0,0,0,6],[1,0,1,3],[2,0,2,3],[6,2,7,2],[6,4,7,4],[6,5,7,5],[6,6,7,6],[8,6,9,6],[8,4,9,4],[11,0,11,3],[3,0,10,1],[8,2,9,2],[8,5,9,5]]}
["給与差押可能額　積算根拠"]
["　　",null,null,null,"Ａ","Ｂ","合計"]
["①　給料等の月額",null,null,null,{"$f":"ROUNDDOWN(簡易計算表!B4,-3)","v":0},{"$f":"IF(簡易計算表!C4=\"\",\"\",ROUNDDOWN(簡易計算表!C4,-3))","v":""},{"$f":"SUM(E3:F3)","v":0}]
["② 国税徴収法第７６条\n第１項に定める差押禁止額\n",null,"１号","給料等から差し引いている源泉所得税額",{"$f":"ROUNDUP(簡易計算表!B5,-3)","v":0},{"$f":"IF(簡易計算表!C5=\"\",\"\",ROUNDUP(簡易計算表!C5,-3))","v":""},{"$f":"SUM(E4:F4)","v":0}]
[null,null,"２号","給料等から差し引いている地方税額",{"$f":"ROUNDUP(簡易計算表!B6,-3)","v":0},{"$f":"IF(簡易計算表!C6=\"\",\"\",ROUNDUP(簡易計算表!C6,-3))","v":""},{"$f":"SUM(E5:F5)","v":0}]
[null,null,"３号","給料等から差し引いている社会保険料等の額",{"$f":"ROUNDUP(簡易計算表!B7,-3)","v":0},{"$f":"IF(簡易計算表!C7=\"\",\"\",ROUNDUP(簡易計算表!C7,-3))","v":""},{"$f":"SUM(E6:F6)","v":0}]
[null,null,"４号","別表に掲げる滞納者を含む家族数に対する金額",{"$f":"100000+45000*簡易計算表!B8","v":100000},null,{"$f":"100000+45000*簡易計算表!B8","v":100000}]
[null,null,null,"（100,000円＋45,000円×生計を一にする親族数）"]
[null,null,"５号","｛①－（１号＋２号＋３号＋４号の金額）｝×0.2",{"$f":"IF(簡易計算表!B4=\"\",\"\",IF(ROUNDUP((E3-(E4+E5+E6+E7))*0.2,-3)>E7*2,E7*2,ROUNDUP((E3-(E4+E5+E6+E7))*0.2,-3)))","v":""},{"$f":"IF(簡易計算表!C4=\"\",\"\",IF(ROUNDUP((F3-(F4+F5+F6+F7))*0.2,-3)>E7*2,E7*2,ROUNDUP((F3-(F4+F5+F6+F7))*0.2,-3)))","v":""},{"$f":"IF(ROUNDUP((G3-(G4+G5+G6+G7))*0.2,-3)>G7*2,G7*2,ROUNDUP((G3-(G4+G5+G6+G7))*0.2,-3))","v":-20000}]
[null,null,null,"　※但し（４号の金額×２）の金額を限度とする。"]
[null,null,"合計","１号＋２号＋３号＋４号＋５号の金額",{"$f":"SUM(E4:E10)","v":100000},{"$f":"IF(簡易計算表!C4=\"\",\"\",SUM(F4:F10))","v":""},{"$f":"SUM(G4:G10)","v":80000}]
["③差押（可能）金額（①－②欄の合計金額）",null,null,null,{"$f":"IF(J12<0,0,J12)","v":0},{"$f":"G12-E12","v":-80000},{"$f":"G3-G11","v":-80000},null,null,{"$f":"E3-E11","v":-100000}]

{"sheet":"国税徴収法76条第1項","index":2,"n_rows":17,"n_cols":1,"rows_kept":17,"cut":false,"hidden":false,"merged":[]}
["国税徴収法"]
[]
["（給与の差押禁止）"]
["第七十六条　給料、賃金、俸給、歳費、退職年金及びこれらの性質を有する給与に係る債権（以下「給料等」という。）については、次に掲げる金額の合計額に達するまでの部分の金額は、差し押えることができない。この場合において、滞納者が同一の期間につき二以上の給料等の支払を受けるときは、その合計額につき、第四号又は第五号に掲げる金額に係る限度を計算するものとする。"]
["一　所得税法第百八十三条（給与所得に係る源泉徴収義務）、第百九十条（年末調整）、第百九十二条（年末調整に係る不足額の徴収）又は第二百十二条（非居住者等の所得に係る源泉徴収義務）の規定によりその給料等につき徴収される所得税に相当する金額"]
["二　地方税法第三百二十一条の三（個人の市町村民税の特別徴収）その他の規定によりその給料等につき特別徴収の方法によつて徴収される道府県民税及び市町村民税に相当する金額"]
["三　健康保険法（大正十一年法律第七十号）第百六十七条第一項（報酬からの保険料の控除）その他の法令の規定によりその給料等から控除される社会保険料（所得税法第七十四条第二項（社会保険料控除）に規定する社会保険料をいう。）に相当する金額"]
["四　滞納者（その者と生計を一にする親族を含む。）に対し、これらの者が所得を有しないものとして、生活保護法（昭和二十五年法律第百四十四号）第十二条（生活扶助）に規定する生活扶助の給付を行うこととした場合におけるその扶助の基準となる金額で給料等の支給の基礎となつた期間に応ずるものを勘案して政令で定める金額"]
["五　その給料等の金額から前各号に掲げる金額の合計額を控除した金額の百分の二十に相当する金額（その金額が前号に掲げる金額の二倍に相当する金額をこえるときは、当該金額）"]
["２　給料等に基き支払を受けた金銭は、前項第四号及び第五号に掲げる金額の合計額に、その給料等の支給の基礎となつた期間の日数のうちに差押の日から次の支払日までの日数の占める割合を乗じて計算した金額を限度として、差し押えることができない。"]
["３　賞与及びその性質を有する給与に係る債権については、その支払を受けるべき時における給料等とみなして、第一項の規定を適用する。この場合において、同項第四号又は第五号に掲げる金額に係る限度の計算については、その支給の基礎となつた期間が一月であるものとみなす。"]
["４　退職手当及びその性質を有する給与に係る債権（以下「退職手当等」という。）については、次に掲げる金額の合計額に達するまでの部分の金額は、差し押えることができない。"]
["一　所得税法第百九十九条（退職所得に係る源泉徴収義務）又は第二百十二条の規定によりその退職手当等につき徴収される所得税に相当する金額"]
["二　第一項第二号及び第三号中「給料等」とあるのを「退職手当等」として、これらの規定を適用して算定した金額"]
["三　第一項第四号に掲げる金額で同号に規定する期間を一月として算定したものの三倍に相当する金額"]
["四　退職手当等の支給の基礎となつた期間が五年をこえる場合には、そのこえる年数一年につき前号に掲げる金額の百分の二十に相当する金額"]
["５　第一項、第二項及び前項の規定は、滞納者の承諾があるときは適用しない。"]